[Event "Titled Tuesday Blitz September 27 Early 2022"]
[White "Begunov, Konstantin"]
[Black "Riehle, Marco"]
[WhiteFideId "4118510"]
[BlackFideId "12904392"]
[WhiteElo "2165"]
[BlackElo "2462"]
[Result "0-1"]
[Round "03"]
[TimeControl "180+1"]
[Date "2022.09.27"]
[WhiteClock "0:00:18"]
[BlackClock "0:02:14"]

1. d4 {[%clk 0:02:57]}  Nf6 {[%clk 0:02:58]} 2. c4 {[%clk 0:02:57]}  e5 {[%clk 0:02:58]} 3. dxe5 {[%clk 0:02:56]}  Ne4 {[%clk 0:02:59]} 4. Nf3 {[%clk 0:02:49]}  b6 {[%clk 0:02:59]} 5. Nbd2 {[%clk 0:02:43]}  Bb7 {[%clk 0:02:54]} 6. Nxe4 {[%clk 0:02:00]}  Bxe4 {[%clk 0:02:55]} 7. a3 {[%clk 0:01:58]}  a5 {[%clk 0:02:53]} 8. Bf4 {[%clk 0:01:35]}  Bc5 {[%clk 0:02:51]} 9. e3 {[%clk 0:01:35]}  O-O {[%clk 0:02:50]} 10. Bd3 {[%clk 0:01:34]}  Bb7 {[%clk 0:02:49]} 11. O-O {[%clk 0:01:30]}  h6 {[%clk 0:02:49]} 12. Bg3 {[%clk 0:01:21]}  Nc6 {[%clk 0:02:42]} 13. Nd4 {[%clk 0:01:21]}  Re8 {[%clk 0:02:41]} 14. Nxc6 {[%clk 0:01:15]}  Bxc6 {[%clk 0:02:40]} 15. Re1 {[%clk 0:01:09]}  Qg5 {[%clk 0:02:35]} 16. f4 {[%clk 0:01:04]}  Qe7 {[%clk 0:02:35]} 17. Bf2 {[%clk 0:00:55]}  Rad8 {[%clk 0:02:32]} 18. Qc2 {[%clk 0:00:47]}  d6 {[%clk 0:02:31]} 19. exd6 {[%clk 0:00:44]}  Rxd6 {[%clk 0:02:29]} 20. Re2 {[%clk 0:00:27]}  Red8 {[%clk 0:02:27]} 21. Bf5 {[%clk 0:00:21]}  g6 {[%clk 0:02:23]} 22. Bg4 {[%clk 0:00:21]}  h5 {[%clk 0:02:23]} 23. Bf3 {[%clk 0:00:20]}  Bxf3 {[%clk 0:02:22]} 24. gxf3 {[%clk 0:00:21]}  Qe6 {[%clk 0:02:22]} 25. Kg2 {[%clk 0:00:19]}  Rd3 {[%clk 0:02:20]} 26. e4 {[%clk 0:00:18]}  Bxf2 {[%clk 0:02:18]} 27. Rxf2 {[%clk 0:00:19]}  R8d4 {[%clk 0:02:17]} 28. b3 {[%clk 0:00:18]}  Qd6 {[%clk 0:02:17]} 29. Re1 {[%clk 0:00:17]}  Qxf4 {[%clk 0:02:15]} 30. c5 {[%clk 0:00:17]}  Rd2 {[%clk 0:02:14]} 31. Ree2 {[%clk 0:00:18]}  Rxc2 {[%clk 0:02:14]} 0-1


[Site "https://www.chess.com"]

[Event "Titled Tuesday Blitz September 27 Early 2022"]
[White "Bettalli, Francesco"]
[Black "Orlov, Georgi"]
[WhiteFideId "2816453"]
[BlackFideId "2011271"]
[WhiteElo "2216"]
[BlackElo "2603"]
[Result "1-0"]
[Round "03"]
[TimeControl "180+1"]
[Date "2022.09.27"]
[WhiteClock "0:00:01"]
[BlackClock "0:00:01"]

1. d4 {[%clk 0:02:59]}  b6 {[%clk 0:03:00]} 2. e4 {[%clk 0:02:58]}  Bb7 {[%clk 0:03:01]} 3. Bd3 {[%clk 0:02:59]}  Nf6 {[%clk 0:03:00]} 4. f3 {[%clk 0:02:58]}  e6 {[%clk 0:02:58]} 5. c4 {[%clk 0:02:58]}  d5 {[%clk 0:02:57]} 6. cxd5 {[%clk 0:02:57]}  exd5 {[%clk 0:02:57]} 7. e5 {[%clk 0:02:58]}  Nfd7 {[%clk 0:02:55]} 8. Ne2 {[%clk 0:02:58]}  c5 {[%clk 0:02:53]} 9. f4 {[%clk 0:02:59]}  cxd4 {[%clk 0:02:49]} 10. Nxd4 {[%clk 0:03:00]}  Bc5 {[%clk 0:02:49]} 11. Be3 {[%clk 0:02:58]}  Nc6 {[%clk 0:02:48]} 12. Bb5 {[%clk 0:02:39]}  Bxd4 {[%clk 0:02:44]} 13. Bxd4 {[%clk 0:02:39]}  Nc5 {[%clk 0:02:38]} 14. O-O {[%clk 0:02:34]}  O-O {[%clk 0:02:25]} 15. Nc3 {[%clk 0:02:33]}  Ne6 {[%clk 0:02:23]} 16. Bxc6 {[%clk 0:02:23]}  Bxc6 {[%clk 0:02:23]} 17. f5 {[%clk 0:02:24]}  Nxd4 {[%clk 0:02:09]} 18. Qxd4 {[%clk 0:02:24]}  Qe7 {[%clk 0:02:09]} 19. b4 {[%clk 0:02:14]}  a5 {[%clk 0:01:51]} 20. b5 {[%clk 0:01:58]}  Bb7 {[%clk 0:01:49]} 21. Rac1 {[%clk 0:01:49]}  Qb4 {[%clk 0:01:19]} 22. Qd3 {[%clk 0:01:32]}  Qc5+ {[%clk 0:01:10]} 23. Kh1 {[%clk 0:01:31]}  d4 {[%clk 0:01:10]} 24. Ne2 {[%clk 0:00:37]}  Qxe5 {[%clk 0:01:08]} 25. f6 {[%clk 0:00:37]}  gxf6 {[%clk 0:00:57]} 26. Nf4 {[%clk 0:00:11]}  Rfe8 {[%clk 0:00:30]} 27. Qh3 {[%clk 0:00:08]}  Kh8 {[%clk 0:00:15]} 28. Nh5 {[%clk 0:00:05]}  Rg8 {[%clk 0:00:15]} 29. Rc2 {[%clk 0:00:04]}  d3 {[%clk 0:00:14]} 30. Rcf2 {[%clk 0:00:03]}  f5 {[%clk 0:00:09]} 31. Nf4 {[%clk 0:00:03]}  Rad8 {[%clk 0:00:05]} 32. Nxd3 {[%clk 0:00:02]}  Qd4 {[%clk 0:00:05]} 33. Nf4 {[%clk 0:00:03]}  Rg5 {[%clk 0:00:04]} 34. Nh5 {[%clk 0:00:03]}  Rdg8 {[%clk 0:00:04]} 35. Ng3 {[%clk 0:00:02]}  Qd5 {[%clk 0:00:04]} 36. Rg1 {[%clk 0:00:01]}  f4 {[%clk 0:00:03]} 37. Rxf4 {[%clk 0:00:01]}  Rxg3 {[%clk 0:00:03]} 38. hxg3 {[%clk 0:00:02]}  Qxb5 {[%clk 0:00:02]} 39. Rh4 {[%clk 0:00:02]}  Qd3 {[%clk 0:00:01]} 40. Kh2 {[%clk 0:00:02]}  Rg6 {[%clk 0:00:01]} 41. Rd1 {[%clk 0:00:02]}  Kg8 {[%clk 0:00:01]} 42. Rxd3 {[%clk 0:00:01]} 1-0


[Site "https://www.chess.com"]

[Event "Titled Tuesday Blitz September 27 Early 2022"]
[White "Bilych, Olexiy"]
[Black "Xiong, Jeffery"]
[WhiteFideId "14156504"]
[BlackFideId "2047640"]
[WhiteElo "2157"]
[BlackElo "2714"]
[Result "0-1"]
[Round "03"]
[TimeControl "180+1"]
[Date "2022.09.27"]
[WhiteClock "0:00:07"]
[BlackClock "0:00:43"]

1. e4 {[%clk 0:03:00]}  c5 {[%clk 0:02:59]} 2. Nf3 {[%clk 0:03:00]}  d6 {[%clk 0:02:59]} 3. d4 {[%clk 0:03:00]}  cxd4 {[%clk 0:03:00]} 4. Nxd4 {[%clk 0:03:01]}  Nf6 {[%clk 0:03:01]} 5. Nc3 {[%clk 0:03:02]}  a6 {[%clk 0:03:01]} 6. Bg5 {[%clk 0:03:02]}  e6 {[%clk 0:03:00]} 7. f4 {[%clk 0:03:02]}  h6 {[%clk 0:02:59]} 8. Bh4 {[%clk 0:03:02]}  Qb6 {[%clk 0:03:00]} 9. a3 {[%clk 0:03:02]}  Nbd7 {[%clk 0:02:58]} 10. Bf2 {[%clk 0:03:01]}  Qc7 {[%clk 0:02:58]} 11. Qf3 {[%clk 0:03:02]}  b5 {[%clk 0:02:58]} 12. O-O-O {[%clk 0:03:02]}  Bb7 {[%clk 0:02:57]} 13. Bd3 {[%clk 0:02:58]}  h5 {[%clk 0:02:57]} 14. Rhe1 {[%clk 0:02:50]}  Rc8 {[%clk 0:02:56]} 15. Kb1 {[%clk 0:02:47]}  g6 {[%clk 0:02:49]} 16. f5 {[%clk 0:02:07]}  gxf5 {[%clk 0:02:44]} 17. Qh3 {[%clk 0:02:07]}  Ng4 {[%clk 0:02:43]} 18. Bg3 {[%clk 0:01:45]}  f4 {[%clk 0:02:40]} 19. Bxf4 {[%clk 0:01:42]}  e5 {[%clk 0:02:19]} 20. Nd5 {[%clk 0:01:26]}  Qd8 {[%clk 0:02:19]} 21. Nf5 {[%clk 0:01:03]}  exf4 {[%clk 0:02:17]} 22. Qf3 {[%clk 0:00:53]}  Nge5 {[%clk 0:02:00]} 23. Qxf4 {[%clk 0:00:53]}  Rg8 {[%clk 0:02:00]} 24. Rf1 {[%clk 0:00:45]}  Qg5 {[%clk 0:01:56]} 25. Qf2 {[%clk 0:00:44]}  Qxg2 {[%clk 0:01:52]} 26. Qa7 {[%clk 0:00:44]}  Bxd5 {[%clk 0:01:44]} 27. Qxa6 {[%clk 0:00:37]}  Ra8 {[%clk 0:01:36]} 28. Nxd6+ {[%clk 0:00:34]}  Kd8 {[%clk 0:00:57]} 29. Qxb5 {[%clk 0:00:24]}  Bc6 {[%clk 0:00:57]} 30. Qb4 {[%clk 0:00:20]}  Qg6 {[%clk 0:00:53]} 31. Bb5 {[%clk 0:00:20]}  Bxb5 {[%clk 0:00:47]} 32. Nb7+ {[%clk 0:00:20]}  Kc7 {[%clk 0:00:47]} 33. Qxb5 {[%clk 0:00:20]}  Qc6 {[%clk 0:00:46]} 34. Qb3 {[%clk 0:00:05]}  Qxb7 {[%clk 0:00:44]} 35. Rxd7+ {[%clk 0:00:06]}  Nxd7 {[%clk 0:00:44]} 36. Qxf7 {[%clk 0:00:07]}  Bxa3 {[%clk 0:00:43]} 0-1


[Site "https://www.chess.com"]

[Event "Titled Tuesday Blitz September 27 Early 2022"]
[White "Bowden, Karl"]
[Black "Domingo Nunez, Ruben"]
[WhiteFideId "400548"]
[BlackFideId "22245570"]
[WhiteElo "2469"]
[BlackElo "2406"]
[Result "0-1"]
[Round "03"]
[TimeControl "180+1"]
[Date "2022.09.27"]
[WhiteClock "0:00:03"]
[BlackClock "0:00:43"]

1. e4 {[%clk 0:02:59]}  g6 {[%clk 0:02:55]} 2. d4 {[%clk 0:02:59]}  Bg7 {[%clk 0:02:56]} 3. c3 {[%clk 0:03:00]}  b6 {[%clk 0:02:50]} 4. Bd3 {[%clk 0:02:51]}  Bb7 {[%clk 0:02:49]} 5. Qe2 {[%clk 0:02:50]}  e6 {[%clk 0:02:49]} 6. f4 {[%clk 0:02:50]}  a6 {[%clk 0:02:49]} 7. Nf3 {[%clk 0:02:50]}  d6 {[%clk 0:02:48]} 8. O-O {[%clk 0:02:50]}  Nd7 {[%clk 0:02:48]} 9. f5 {[%clk 0:02:43]}  e5 {[%clk 0:02:48]} 10. Ng5 {[%clk 0:02:20]}  Ngf6 {[%clk 0:02:29]} 11. d5 {[%clk 0:02:13]}  h6 {[%clk 0:02:20]} 12. Nh3 {[%clk 0:02:05]}  c6 {[%clk 0:02:08]} 13. c4 {[%clk 0:02:04]}  b5 {[%clk 0:02:03]} 14. b3 {[%clk 0:02:04]}  O-O {[%clk 0:02:01]} 15. Nc3 {[%clk 0:01:57]}  a5 {[%clk 0:01:51]} 16. dxc6 {[%clk 0:01:44]}  Bxc6 {[%clk 0:01:52]} 17. cxb5 {[%clk 0:01:28]}  Bb7 {[%clk 0:01:51]} 18. Be3 {[%clk 0:01:23]}  Nc5 {[%clk 0:01:40]} 19. fxg6 {[%clk 0:00:49]}  fxg6 {[%clk 0:01:39]} 20. Bxc5 {[%clk 0:00:48]}  dxc5 {[%clk 0:01:40]} 21. Bc4+ {[%clk 0:00:48]}  Kh7 {[%clk 0:01:40]} 22. Rad1 {[%clk 0:00:46]}  Qc8 {[%clk 0:01:39]} 23. Nf2 {[%clk 0:00:31]}  h5 {[%clk 0:01:36]} 24. Rd6 {[%clk 0:00:27]}  Bh6 {[%clk 0:01:35]} 25. Rfd1 {[%clk 0:00:22]}  Qe8 {[%clk 0:01:03]} 26. b6 {[%clk 0:00:18]}  Bc8 {[%clk 0:00:55]} 27. Bb5 {[%clk 0:00:13]}  Qe7 {[%clk 0:00:56]} 28. Bc6 {[%clk 0:00:11]}  Rb8 {[%clk 0:00:56]} 29. Na4 {[%clk 0:00:08]}  Kh8 {[%clk 0:00:45]} 30. b7 {[%clk 0:00:06]}  Bg4 {[%clk 0:00:42]} 31. Nxg4 {[%clk 0:00:03]}  Nxg4 {[%clk 0:00:43]} 0-1


[Site "https://www.chess.com"]

[Event "Titled Tuesday Blitz September 27 Early 2022"]
[White "Bryakin, Mikhail"]
[Black "Sharifov, Mekhriddin"]
[WhiteFideId "4165314"]
[BlackFideId "14701545"]
[WhiteElo "2357"]
[BlackElo "1540"]
[Result "1-0"]
[Round "03"]
[TimeControl "180+1"]
[Date "2022.09.27"]
[WhiteClock "0:00:11"]
[BlackClock "0:00:13"]

1. e4 {[%clk 0:03:00]}  c5 {[%clk 0:02:58]} 2. c3 {[%clk 0:02:59]}  d5 {[%clk 0:02:58]} 3. exd5 {[%clk 0:02:58]}  Qxd5 {[%clk 0:02:59]} 4. d4 {[%clk 0:02:58]}  Nf6 {[%clk 0:03:00]} 5. Nf3 {[%clk 0:02:54]}  Bf5 {[%clk 0:03:00]} 6. Be3 {[%clk 0:02:49]}  cxd4 {[%clk 0:03:00]} 7. Nxd4 {[%clk 0:02:49]}  Bxb1 {[%clk 0:02:37]} 8. Rxb1 {[%clk 0:02:40]}  Nc6 {[%clk 0:02:37]} 9. Nb5 {[%clk 0:02:39]}  Qe5 {[%clk 0:02:25]} 10. Be2 {[%clk 0:02:16]}  a6 {[%clk 0:02:24]} 11. Nd4 {[%clk 0:02:12]}  e6 {[%clk 0:02:18]} 12. Nxc6 {[%clk 0:02:08]}  bxc6 {[%clk 0:02:19]} 13. O-O {[%clk 0:02:03]}  Bd6 {[%clk 0:02:18]} 14. g3 {[%clk 0:01:58]}  Nd5 {[%clk 0:02:10]} 15. Bd4 {[%clk 0:01:56]}  Qg5 {[%clk 0:02:05]} 16. c4 {[%clk 0:01:44]}  Nf4 {[%clk 0:02:01]} 17. Bf3 {[%clk 0:01:43]}  O-O {[%clk 0:01:58]} 18. Kh1 {[%clk 0:01:27]}  Rfd8 {[%clk 0:01:50]} 19. Be3 {[%clk 0:01:16]}  Qf6 {[%clk 0:01:13]} 20. gxf4 {[%clk 0:01:09]}  Bxf4 {[%clk 0:01:13]} 21. Qe2 {[%clk 0:01:09]}  Bc7 {[%clk 0:01:14]} 22. Rg1 {[%clk 0:01:07]}  Qh4 {[%clk 0:01:02]} 23. Rg2 {[%clk 0:01:05]}  f6 {[%clk 0:00:47]} 24. Rbg1 {[%clk 0:00:58]}  Kh8 {[%clk 0:00:47]} 25. Bxc6 {[%clk 0:00:55]}  Rab8 {[%clk 0:00:48]} 26. b3 {[%clk 0:00:53]}  Rd6 {[%clk 0:00:42]} 27. Qf3 {[%clk 0:00:47]}  Rbd8 {[%clk 0:00:39]} 28. Be4 {[%clk 0:00:35]}  f5 {[%clk 0:00:35]} 29. Bb7 {[%clk 0:00:32]}  Rd3 {[%clk 0:00:33]} 30. Bxa6 {[%clk 0:00:18]}  f4 {[%clk 0:00:33]} 31. Qc6 {[%clk 0:00:10]}  Rd1 {[%clk 0:00:17]} 32. Qxc7 {[%clk 0:00:09]}  Rxg1+ {[%clk 0:00:17]} 33. Rxg1 {[%clk 0:00:10]}  Rg8 {[%clk 0:00:16]} 34. Bd4 {[%clk 0:00:09]}  Qh6 {[%clk 0:00:13]} 35. Bxg7+ {[%clk 0:00:08]}  Qxg7 {[%clk 0:00:11]} 36. Qxg7+ {[%clk 0:00:09]}  Rxg7 {[%clk 0:00:12]} 37. Rxg7 {[%clk 0:00:09]}  Kxg7 {[%clk 0:00:13]} 38. Kg2 {[%clk 0:00:10]}  e5 {[%clk 0:00:13]} 39. Kf3 {[%clk 0:00:11]}  Kf6 {[%clk 0:00:14]} 40. Ke4 {[%clk 0:00:11]}  Ke6 {[%clk 0:00:15]} 41. Bc8+ {[%clk 0:00:11]}  Kd6 {[%clk 0:00:13]} 42. Bf5 {[%clk 0:00:11]} 1-0


[Site "https://www.chess.com"]

[Event "Titled Tuesday Blitz September 27 Early 2022"]
[White "Burmakin, Vladimir"]
[Black "Andreikin, Dmitry"]
[WhiteFideId "4105109"]
[BlackFideId "4158814"]
[WhiteElo "2513"]
[BlackElo "2736"]
[Result "0-1"]
[Round "03"]
[TimeControl "180+1"]
[Date "2022.09.27"]
[WhiteClock "0:00:04"]
[BlackClock "0:01:21"]

1. c4 {[%clk 0:03:00]}  e5 {[%clk 0:02:59]} 2. g3 {[%clk 0:03:00]}  Bc5 {[%clk 0:02:59]} 3. Bg2 {[%clk 0:03:00]}  d6 {[%clk 0:02:59]} 4. Nc3 {[%clk 0:02:59]}  a6 {[%clk 0:02:59]} 5. e3 {[%clk 0:02:58]}  Ba7 {[%clk 0:02:53]} 6. Nge2 {[%clk 0:02:57]}  Nf6 {[%clk 0:02:50]} 7. d3 {[%clk 0:02:52]}  O-O {[%clk 0:02:49]} 8. O-O {[%clk 0:02:51]}  c6 {[%clk 0:02:48]} 9. b4 {[%clk 0:02:44]}  d5 {[%clk 0:02:48]} 10. c5 {[%clk 0:02:44]}  Bg4 {[%clk 0:02:47]} 11. h3 {[%clk 0:02:43]}  Bh5 {[%clk 0:02:47]} 12. Qc2 {[%clk 0:02:10]}  Nbd7 {[%clk 0:02:45]} 13. f4 {[%clk 0:01:58]}  a5 {[%clk 0:02:36]} 14. a3 {[%clk 0:01:56]}  Re8 {[%clk 0:02:28]} 15. d4 {[%clk 0:01:49]}  Bg6 {[%clk 0:02:05]} 16. f5 {[%clk 0:01:46]}  Bh5 {[%clk 0:02:06]} 17. dxe5 {[%clk 0:00:52]}  Bxe2 {[%clk 0:01:54]} 18. Nxe2 {[%clk 0:00:49]}  Rxe5 {[%clk 0:01:54]} 19. Qc3 {[%clk 0:00:29]}  Qe7 {[%clk 0:01:52]} 20. Bd2 {[%clk 0:00:25]}  Re8 {[%clk 0:01:49]} 21. Nd4 {[%clk 0:00:19]}  Ne4 {[%clk 0:01:45]} 22. Bxe4 {[%clk 0:00:18]}  Rxe4 {[%clk 0:01:46]} 23. Rf3 {[%clk 0:00:16]}  Bb8 {[%clk 0:01:43]} 24. Raf1 {[%clk 0:00:11]}  Ne5 {[%clk 0:01:42]} 25. Rf4 {[%clk 0:00:11]}  Nc4 {[%clk 0:01:42]} 26. Rxe4 {[%clk 0:00:11]}  Qxe4 {[%clk 0:01:43]} 27. Kf2 {[%clk 0:00:06]}  axb4 {[%clk 0:01:38]} 28. axb4 {[%clk 0:00:05]}  Be5 {[%clk 0:01:38]} 29. Bc1 {[%clk 0:00:06]}  Bxd4 {[%clk 0:01:23]} 30. exd4 {[%clk 0:00:05]}  Qxf5+ {[%clk 0:01:21]} 31. Kg1 {[%clk 0:00:04]}  Qxh3 {[%clk 0:01:21]} 32. Qf3 {[%clk 0:00:04]}  f6 {[%clk 0:01:21]} 0-1


[Site "https://www.chess.com"]

[Event "Titled Tuesday Blitz September 27 Early 2022"]
[White "Butti, Enrique"]
[Black "Rosenberg, Evan S"]
[WhiteFideId "3700470"]
[BlackFideId "2019299"]
[WhiteElo "2080"]
[BlackElo "2363"]
[Result "0-1"]
[Round "03"]
[TimeControl "180+1"]
[Date "2022.09.27"]
[WhiteClock "0:01:23"]
[BlackClock "0:01:21"]

1. d4 {[%clk 0:02:58]}  Nf6 {[%clk 0:02:59]} 2. Nf3 {[%clk 0:02:57]}  d5 {[%clk 0:02:58]} 3. c4 {[%clk 0:02:56]}  e6 {[%clk 0:02:57]} 4. e3 {[%clk 0:02:56]}  a6 {[%clk 0:02:56]} 5. Bd3 {[%clk 0:02:51]}  dxc4 {[%clk 0:02:54]} 6. Bxc4 {[%clk 0:02:50]}  b5 {[%clk 0:02:55]} 7. Bd3 {[%clk 0:02:50]}  Bb7 {[%clk 0:02:55]} 8. a4 {[%clk 0:02:49]}  b4 {[%clk 0:02:50]} 9. O-O {[%clk 0:02:48]}  Be7 {[%clk 0:02:49]} 10. b3 {[%clk 0:02:47]}  O-O {[%clk 0:02:49]} 11. Bb2 {[%clk 0:02:47]}  Nbd7 {[%clk 0:02:37]} 12. Nbd2 {[%clk 0:02:46]}  Nb6 {[%clk 0:02:36]} 13. a5 {[%clk 0:02:44]}  Nbd5 {[%clk 0:02:36]} 14. Rc1 {[%clk 0:02:30]}  Ra7 {[%clk 0:02:34]} 15. Nc4 {[%clk 0:02:28]}  Re8 {[%clk 0:02:23]} 16. Nfe5 {[%clk 0:02:27]}  g6 {[%clk 0:02:10]} 17. f4 {[%clk 0:02:25]}  Nd7 {[%clk 0:02:07]} 18. f5 {[%clk 0:02:01]}  exf5 {[%clk 0:02:00]} 19. Rxf5 {[%clk 0:01:59]}  Nxe5 {[%clk 0:01:53]} 20. Nxe5 {[%clk 0:01:57]}  Nxe3 {[%clk 0:01:53]} 21. Qe2 {[%clk 0:01:43]}  Nxf5 {[%clk 0:01:48]} 22. Bxf5 {[%clk 0:01:42]}  gxf5 {[%clk 0:01:27]} 23. Qh5 {[%clk 0:01:41]}  Bd5 {[%clk 0:01:21]} 24. Qxf5 {[%clk 0:01:23]}  Bf6 {[%clk 0:01:21]} 0-1


[Site "https://www.chess.com"]

[Event "Titled Tuesday Blitz September 27 Early 2022"]
[White "Bykhovsky, Anatoly"]
[Black "Narayanan.S.L"]
[WhiteFideId "2806991"]
[BlackFideId "5058422"]
[WhiteElo "2540"]
[BlackElo "2504"]
[Result "0-1"]
[Round "03"]
[TimeControl "180+1"]
[Date "2022.09.27"]
[WhiteClock "0:00:19"]
[BlackClock "0:00:37"]

1. d4 {[%clk 0:03:00]}  Nf6 {[%clk 0:02:59]} 2. Nf3 {[%clk 0:03:01]}  g6 {[%clk 0:02:59]} 3. c4 {[%clk 0:03:01]}  Bg7 {[%clk 0:03:00]} 4. Nc3 {[%clk 0:03:02]}  O-O {[%clk 0:03:00]} 5. Bg5 {[%clk 0:02:55]}  c5 {[%clk 0:02:53]} 6. d5 {[%clk 0:02:55]}  d6 {[%clk 0:02:53]} 7. Nd2 {[%clk 0:02:52]}  e6 {[%clk 0:02:51]} 8. e4 {[%clk 0:02:51]}  exd5 {[%clk 0:02:51]} 9. cxd5 {[%clk 0:02:52]}  Re8 {[%clk 0:02:51]} 10. Be2 {[%clk 0:02:52]}  a6 {[%clk 0:02:47]} 11. a4 {[%clk 0:02:52]}  Nbd7 {[%clk 0:02:48]} 12. O-O {[%clk 0:02:51]}  Rb8 {[%clk 0:02:48]} 13. Re1 {[%clk 0:02:51]}  Ne5 {[%clk 0:02:45]} 14. h3 {[%clk 0:02:47]}  h6 {[%clk 0:02:43]} 15. Bf4 {[%clk 0:02:44]}  g5 {[%clk 0:02:44]} 16. Bh2 {[%clk 0:02:43]}  Bd7 {[%clk 0:02:42]} 17. a5 {[%clk 0:02:23]}  b5 {[%clk 0:02:40]} 18. axb6 {[%clk 0:02:22]}  Rxb6 {[%clk 0:02:41]} 19. Bxe5 {[%clk 0:02:23]}  dxe5 {[%clk 0:02:30]} 20. Nc4 {[%clk 0:02:23]}  Rb4 {[%clk 0:02:30]} 21. Rxa6 {[%clk 0:02:21]}  g4 {[%clk 0:02:30]} 22. hxg4 {[%clk 0:02:18]}  Bxg4 {[%clk 0:02:30]} 23. Bxg4 {[%clk 0:02:12]}  Rxc4 {[%clk 0:02:30]} 24. Bf5 {[%clk 0:02:11]}  Rd4 {[%clk 0:02:31]} 25. Qf3 {[%clk 0:02:08]}  c4 {[%clk 0:02:31]} 26. Rea1 {[%clk 0:02:03]}  Qb8 {[%clk 0:02:30]} 27. Qg3 {[%clk 0:01:57]}  Kh8 {[%clk 0:02:18]} 28. Qh4 {[%clk 0:01:53]}  Ng8 {[%clk 0:02:08]} 29. d6 {[%clk 0:01:38]}  Rxd6 {[%clk 0:02:07]} 30. Rxd6 {[%clk 0:01:33]}  Qxd6 {[%clk 0:02:08]} 31. Ra7 {[%clk 0:01:33]}  Ne7 {[%clk 0:02:05]} 32. Qh5 {[%clk 0:01:28]}  Rf8 {[%clk 0:02:01]} 33. g3 {[%clk 0:01:12]}  Kg8 {[%clk 0:01:47]} 34. Kg2 {[%clk 0:01:08]}  Qb4 {[%clk 0:01:44]} 35. Nd5 {[%clk 0:00:57]}  Nxd5 {[%clk 0:01:44]} 36. exd5 {[%clk 0:00:58]}  Qxb2 {[%clk 0:01:43]} 37. Be4 {[%clk 0:00:54]}  Qb6 {[%clk 0:01:32]} 38. Qf5 {[%clk 0:00:45]}  Qg6 {[%clk 0:01:33]} 39. Qxg6 {[%clk 0:00:44]}  fxg6 {[%clk 0:01:34]} 40. Rc7 {[%clk 0:00:39]}  Rf6 {[%clk 0:01:32]} 41. Rxc4 {[%clk 0:00:37]}  Bf8 {[%clk 0:01:32]} 42. g4 {[%clk 0:00:32]}  Bd6 {[%clk 0:01:31]} 43. f3 {[%clk 0:00:30]}  Kg7 {[%clk 0:01:28]} 44. Ra4 {[%clk 0:00:29]}  Rf8 {[%clk 0:01:28]} 45. Ra7+ {[%clk 0:00:27]}  Kf6 {[%clk 0:01:29]} 46. Ra6 {[%clk 0:00:27]}  Rd8 {[%clk 0:01:29]} 47. Kg3 {[%clk 0:00:26]}  Kg5 {[%clk 0:01:23]} 48. Ra7 {[%clk 0:00:25]}  Bf8 {[%clk 0:01:19]} 49. Ra6 {[%clk 0:00:23]}  Bd6 {[%clk 0:01:18]} 50. Ra7 {[%clk 0:00:23]}  h5 {[%clk 0:01:12]} 51. Rg7 {[%clk 0:00:22]}  h4+ {[%clk 0:01:13]} 52. Kh3 {[%clk 0:00:22]}  Kf4 {[%clk 0:01:10]} 53. Rxg6 {[%clk 0:00:22]}  Be7 {[%clk 0:01:08]} 54. Rg7 {[%clk 0:00:22]}  Bg5 {[%clk 0:01:05]} 55. Rf7+ {[%clk 0:00:22]}  Ke3 {[%clk 0:01:05]} 56. Rf5 {[%clk 0:00:22]}  Bf4 {[%clk 0:00:51]} 57. g5 {[%clk 0:00:22]}  Rg8 {[%clk 0:00:50]} 58. Kxh4 {[%clk 0:00:21]}  Kf2 {[%clk 0:00:46]} 59. d6 {[%clk 0:00:20]}  Rh8+ {[%clk 0:00:38]} 60. Kg4 {[%clk 0:00:20]}  Bg3 {[%clk 0:00:37]} 61. d7 {[%clk 0:00:19]}  Rh4# {[%clk 0:00:37]} 0-1


[Site "https://www.chess.com"]

[Event "Titled Tuesday Blitz September 27 Early 2022"]
[White "Camacho Collados, Jose"]
[Black "Ozen, Bahadir"]
[WhiteFideId "2265427"]
[BlackFideId "6337058"]
[WhiteElo "2264"]
[BlackElo "2503"]
[Result "0-1"]
[Round "03"]
[TimeControl "180+1"]
[Date "2022.09.27"]
[WhiteClock "0:00:30"]
[BlackClock "0:01:57"]

1. c4 {[%clk 0:02:54]}  g6 {[%clk 0:02:54]} 2. g3 {[%clk 0:02:54]}  Bg7 {[%clk 0:02:54]} 3. Bg2 {[%clk 0:02:54]}  c5 {[%clk 0:02:52]} 4. Nc3 {[%clk 0:02:54]}  Nc6 {[%clk 0:02:51]} 5. e4 {[%clk 0:02:54]}  d6 {[%clk 0:02:49]} 6. d3 {[%clk 0:02:54]}  Nf6 {[%clk 0:02:47]} 7. Nge2 {[%clk 0:02:54]}  Nd7 {[%clk 0:02:46]} 8. O-O {[%clk 0:02:54]}  Nf8 {[%clk 0:02:47]} 9. f4 {[%clk 0:02:51]}  Ne6 {[%clk 0:02:47]} 10. f5 {[%clk 0:02:50]}  Ned4 {[%clk 0:02:47]} 11. Nf4 {[%clk 0:02:46]}  O-O {[%clk 0:02:47]} 12. g4 {[%clk 0:02:39]}  e6 {[%clk 0:02:45]} 13. Be3 {[%clk 0:02:34]}  Bd7 {[%clk 0:02:43]} 14. fxe6 {[%clk 0:02:22]}  fxe6 {[%clk 0:02:42]} 15. Kh1 {[%clk 0:02:18]}  Qh4 {[%clk 0:02:41]} 16. Bf2 {[%clk 0:02:08]}  Qe7 {[%clk 0:02:35]} 17. Bg3 {[%clk 0:02:07]}  Ne5 {[%clk 0:02:28]} 18. Nce2 {[%clk 0:01:59]}  Nxg4 {[%clk 0:02:24]} 19. Nxd4 {[%clk 0:01:56]}  Ne3 {[%clk 0:02:24]} 20. Qb3 {[%clk 0:01:26]}  Bxd4 {[%clk 0:02:18]} 21. Rg1 {[%clk 0:01:24]}  Nxg2 {[%clk 0:02:13]} 22. Rxg2 {[%clk 0:01:23]}  Bc6 {[%clk 0:02:14]} 23. h4 {[%clk 0:01:14]}  Kh8 {[%clk 0:02:13]} 24. Kh2 {[%clk 0:01:11]}  Rxf4 {[%clk 0:02:11]} 25. Kh3 {[%clk 0:01:05]}  Raf8 {[%clk 0:02:09]} 26. Qd1 {[%clk 0:01:02]}  Rf3 {[%clk 0:02:08]} 27. Rb1 {[%clk 0:00:59]}  a5 {[%clk 0:02:07]} 28. Qd2 {[%clk 0:00:55]}  Be5 {[%clk 0:02:02]} 29. Qh6 {[%clk 0:00:53]}  Qg7 {[%clk 0:02:02]} 30. Qg5 {[%clk 0:00:49]}  h6 {[%clk 0:02:00]} 31. Qg4 {[%clk 0:00:49]}  Qf6 {[%clk 0:01:59]} 32. Rbg1 {[%clk 0:00:46]}  h5 {[%clk 0:01:59]} 33. Qg5 {[%clk 0:00:41]}  Qxg5 {[%clk 0:01:59]} 34. hxg5 {[%clk 0:00:42]}  Rxd3 {[%clk 0:01:59]} 35. Kh2 {[%clk 0:00:35]}  Rxg3 {[%clk 0:01:58]} 36. Rxg3 {[%clk 0:00:35]}  h4 {[%clk 0:01:59]} 37. Kh3 {[%clk 0:00:32]}  hxg3 {[%clk 0:01:58]} 38. Rh1 {[%clk 0:00:29]}  Bxe4 {[%clk 0:01:57]} 39. Re1 {[%clk 0:00:30]}  Bf5+ {[%clk 0:01:57]} 0-1


[Site "https://www.chess.com"]

[Event "Titled Tuesday Blitz September 27 Early 2022"]
[White "Chernomordik, Pavel"]
[Black "Smietanska, Wiktoria"]
[WhiteFideId "2804530"]
[BlackFideId "21869359"]
[WhiteElo "2217"]
[BlackElo "1847"]
[Result "1-0"]
[Round "03"]
[TimeControl "180+1"]
[Date "2022.09.27"]
[WhiteClock "0:02:31"]
[BlackClock "0:01:19"]

1. e4 {[%clk 0:03:00]}  c5 {[%clk 0:02:56]} 2. Nc3 {[%clk 0:03:00]}  Nc6 {[%clk 0:02:54]} 3. Bb5 {[%clk 0:02:59]}  Nd4 {[%clk 0:02:52]} 4. Bc4 {[%clk 0:02:56]}  g6 {[%clk 0:02:49]} 5. Nge2 {[%clk 0:02:54]}  Bg7 {[%clk 0:02:46]} 6. Nxd4 {[%clk 0:02:54]}  cxd4 {[%clk 0:02:42]} 7. Qf3 {[%clk 0:02:53]}  e6 {[%clk 0:02:30]} 8. Nb5 {[%clk 0:02:52]}  Be5 {[%clk 0:02:18]} 9. c3 {[%clk 0:02:36]}  dxc3 {[%clk 0:02:06]} 10. d4 {[%clk 0:02:35]}  cxb2 {[%clk 0:01:51]} 11. Bxb2 {[%clk 0:02:34]}  Bg7 {[%clk 0:01:19]} 12. Nd6+ {[%clk 0:02:31]} 1-0


[Site "https://www.chess.com"]